[Event "Titled Tuesday Blitz July 11 Early 2023"]
[White "Nakamura, Hikaru"]
[Black "Pinheiro, Iung Alicio de O."]
[WhiteFideId "2016192"]
[BlackFideId "2104350"]
[WhiteElo "3226"]
[BlackElo "2602"]
[Result "1-0"]
[Round "2"]
[TimeControl "180+2"]
[Date "2023.07.11"]
[WhiteClock "0:01:03"]
[BlackClock "0:00:00"]
[Board "1"]

1. a3 {[%clk 0:03:00]}  d5 {[%clk 0:02:56]} 2. e3 {[%clk 0:03:00]}  Nf6 {[%clk 0:02:54]} 3. c4 {[%clk 0:03:00]}  c6 {[%clk 0:02:50]} 4. b4 {[%clk 0:02:53]}  Bf5 {[%clk 0:02:47]} 5. Bb2 {[%clk 0:02:53]}  e6 {[%clk 0:02:47]} 6. Nf3 {[%clk 0:02:53]}  h6 {[%clk 0:02:47]} 7. Nc3 {[%clk 0:02:53]}  Nbd7 {[%clk 0:02:47]} 8. d4 {[%clk 0:02:50]}  Be7 {[%clk 0:02:43]} 9. Bd3 {[%clk 0:02:49]}  Bxd3 {[%clk 0:02:35]} 10. Qxd3 {[%clk 0:02:50]}  O-O {[%clk 0:02:34]} 11. c5 {[%clk 0:02:50]}  Qc7 {[%clk 0:02:24]} 12. Rc1 {[%clk 0:02:45]}  Rfe8 {[%clk 0:02:17]} 13. O-O {[%clk 0:02:40]}  Bf8 {[%clk 0:02:17]} 14. Qb1 {[%clk 0:02:34]}  e5 {[%clk 0:02:12]} 15. dxe5 {[%clk 0:02:32]}  Nxe5 {[%clk 0:02:12]} 16. Nxe5 {[%clk 0:02:28]}  Rxe5 {[%clk 0:02:11]} 17. Ne2 {[%clk 0:02:26]}  Re6 {[%clk 0:02:08]} 18. Nf4 {[%clk 0:02:25]}  Re4 {[%clk 0:01:56]} 19. Bxf6 {[%clk 0:02:25]}  gxf6 {[%clk 0:01:57]} 20. Nh5 {[%clk 0:02:24]}  Bg7 {[%clk 0:01:53]} 21. Ng3 {[%clk 0:02:23]}  Re5 {[%clk 0:01:51]} 22. Nf5 {[%clk 0:02:21]}  Qd7 {[%clk 0:01:50]} 23. g4 {[%clk 0:02:20]}  Bf8 {[%clk 0:01:45]} 24. Rcd1 {[%clk 0:02:14]}  Rae8 {[%clk 0:01:35]} 25. Rd4 {[%clk 0:02:13]}  Re4 {[%clk 0:01:35]} 26. Rfd1 {[%clk 0:02:09]}  Qe6 {[%clk 0:01:30]} 27. h3 {[%clk 0:01:56]}  b6 {[%clk 0:01:19]} 28. Qc2 {[%clk 0:01:38]}  bxc5 {[%clk 0:01:15]} 29. bxc5 {[%clk 0:01:39]}  Re5 {[%clk 0:01:05]} 30. Rb1 {[%clk 0:01:35]}  h5 {[%clk 0:01:00]} 31. Kg2 {[%clk 0:01:30]}  Re4 {[%clk 0:00:52]} 32. Rbb4 {[%clk 0:01:25]}  hxg4 {[%clk 0:00:42]} 33. hxg4 {[%clk 0:01:26]}  Qe5 {[%clk 0:00:42]} 34. Ng3 {[%clk 0:01:17]}  Rxd4 {[%clk 0:00:42]} 35. Rxd4 {[%clk 0:01:17]}  Qe7 {[%clk 0:00:37]} 36. Nh5 {[%clk 0:01:16]}  Bg7 {[%clk 0:00:33]} 37. Rb4 {[%clk 0:01:03]}  Qe6 {[%clk 0:00:31]} 38. Qf5 {[%clk 0:01:02]}  Qxf5 {[%clk 0:00:18]} 39. gxf5 {[%clk 0:01:03]}  Re5 {[%clk 0:00:18]} 40. Rg4 {[%clk 0:01:01]}  Rxf5 {[%clk 0:00:17]} 41. Nxg7 {[%clk 0:01:02]}  Re5 {[%clk 0:00:11]} 42. f4 {[%clk 0:00:59]}  Re4 {[%clk 0:00:08]} 43. Nf5+ {[%clk 0:00:59]}  Kf8 {[%clk 0:00:08]} 44. Rh4 {[%clk 0:01:00]}  Kg8 {[%clk 0:00:06]} 45. Kf3 {[%clk 0:01:00]}  Ra4 {[%clk 0:00:05]} 46. Rg4+ {[%clk 0:01:00]}  Kf8 {[%clk 0:00:04]} 47. Rh4 {[%clk 0:01:01]}  Kg8 {[%clk 0:00:04]} 48. Ne7+ {[%clk 0:01:02]}  Kf8 {[%clk 0:00:04]} 49. Nxc6 {[%clk 0:01:03]}  Rxa3 {[%clk 0:00:04]} 50. Nd4 {[%clk 0:01:03]}  Rc3 {[%clk 0:00:04]} 51. c6 {[%clk 0:01:03]}  Ke7 {[%clk 0:00:03]} 52. Rh8 {[%clk 0:01:03]}  a5 {[%clk 0:00:03]} 53. Ra8 {[%clk 0:01:04]}  Rc5 {[%clk 0:00:00]} 54. Ra7+ {[%clk 0:01:03]} 1-0


[Site "https://www.chess.com"]

[Event "Titled Tuesday Blitz July 11 Early 2023"]
[White "Shukhman, Anna"]
[Black "Erigaisi Arjun"]
[WhiteFideId "54180058"]
[BlackFideId "35009192"]
[WhiteElo "2601"]
[BlackElo "3113"]
[Result "0-1"]
[Round "2"]
[TimeControl "180+2"]
[Date "2023.07.11"]
[WhiteClock "0:00:05"]
[BlackClock "0:00:15"]
[Board "2"]

1. e4 {[%clk 0:03:00]}  c6 {[%clk 0:03:00]} 2. d4 {[%clk 0:03:00]}  d5 {[%clk 0:03:00]} 3. f3 {[%clk 0:03:00]}  g6 {[%clk 0:03:00]} 4. Nc3 {[%clk 0:02:59]}  Bg7 {[%clk 0:03:00]} 5. Be3 {[%clk 0:02:59]}  Qb6 {[%clk 0:02:59]} 6. Qd2 {[%clk 0:02:56]}  Qxb2 {[%clk 0:02:54]} 7. Rb1 {[%clk 0:02:55]}  Qa3 {[%clk 0:02:55]} 8. h4 {[%clk 0:02:55]}  Nf6 {[%clk 0:02:29]} 9. e5 {[%clk 0:02:52]}  Nfd7 {[%clk 0:02:29]} 10. h5 {[%clk 0:02:51]}  Nb6 {[%clk 0:02:29]} 11. Nh3 {[%clk 0:02:19]}  Bxh3 {[%clk 0:02:19]} 12. Rxh3 {[%clk 0:02:17]}  N8d7 {[%clk 0:02:18]} 13. e6 {[%clk 0:02:15]}  fxe6 {[%clk 0:02:18]} 14. hxg6 {[%clk 0:02:15]}  hxg6 {[%clk 0:02:19]} 15. Rxh8+ {[%clk 0:02:12]}  Bxh8 {[%clk 0:02:20]} 16. Qd3 {[%clk 0:02:03]}  O-O-O {[%clk 0:02:15]} 17. Rb3 {[%clk 0:02:01]}  Qd6 {[%clk 0:02:09]} 18. Qxg6 {[%clk 0:02:01]}  e5 {[%clk 0:02:09]} 19. Qxd6 {[%clk 0:01:59]}  exd6 {[%clk 0:02:10]} 20. Ne2 {[%clk 0:01:55]}  Nc4 {[%clk 0:02:08]} 21. Bf2 {[%clk 0:01:55]}  exd4 {[%clk 0:02:00]} 22. Nxd4 {[%clk 0:01:52]}  Re8+ {[%clk 0:02:00]} 23. Kd1 {[%clk 0:01:50]}  Nc5 {[%clk 0:01:59]} 24. Bxc4 {[%clk 0:01:44]}  dxc4 {[%clk 0:02:00]} 25. Re3 {[%clk 0:01:41]}  Rg8 {[%clk 0:01:59]} 26. Nf5 {[%clk 0:01:33]}  Rxg2 {[%clk 0:01:41]} 27. Re8+ {[%clk 0:01:24]}  Kd7 {[%clk 0:01:41]} 28. Re7+ {[%clk 0:01:24]}  Kd8 {[%clk 0:01:41]} 29. Bxc5 {[%clk 0:01:24]}  dxc5 {[%clk 0:01:42]} 30. Rxb7 {[%clk 0:01:21]}  Bc3 {[%clk 0:01:36]} 31. Ne3 {[%clk 0:00:57]}  Rd2+ {[%clk 0:01:29]} 32. Kc1 {[%clk 0:00:56]}  Rf2 {[%clk 0:01:23]} 33. Nd1 {[%clk 0:00:54]}  Bd2+ {[%clk 0:01:20]} 34. Kb2 {[%clk 0:00:51]}  Rxf3 {[%clk 0:01:10]} 35. c3 {[%clk 0:00:48]}  Bf4 {[%clk 0:00:58]} 36. Rxa7 {[%clk 0:00:46]}  Rd3 {[%clk 0:00:59]} 37. Rf7 {[%clk 0:00:40]}  Rd2+ {[%clk 0:00:58]} 38. Ka3 {[%clk 0:00:36]}  Bg5 {[%clk 0:00:48]} 39. Rf5 {[%clk 0:00:29]}  Rg2 {[%clk 0:00:44]} 40. Rxg5 {[%clk 0:00:18]}  Rxg5 {[%clk 0:00:44]} 41. Kb2 {[%clk 0:00:08]}  Rg2+ {[%clk 0:00:43]} 42. Kb1 {[%clk 0:00:08]}  Rg3 {[%clk 0:00:34]} 43. Kc2 {[%clk 0:00:08]}  Kc7 {[%clk 0:00:30]} 44. Nb2 {[%clk 0:00:07]}  Rg2+ {[%clk 0:00:28]} 45. Kc1 {[%clk 0:00:06]}  Rg4 {[%clk 0:00:25]} 46. Kc2 {[%clk 0:00:04]}  Kd6 {[%clk 0:00:24]} 47. a4 {[%clk 0:00:04]}  Kd5 {[%clk 0:00:23]} 48. a5 {[%clk 0:00:04]}  Rg2+ {[%clk 0:00:19]} 49. Kc1 {[%clk 0:00:03]}  Rg7 {[%clk 0:00:20]} 50. Na4 {[%clk 0:00:03]}  Ra7 {[%clk 0:00:14]} 51. Nb6+ {[%clk 0:00:03]}  Ke4 {[%clk 0:00:14]} 52. Nxc4 {[%clk 0:00:04]}  Kd3 {[%clk 0:00:15]} 53. Ne5+ {[%clk 0:00:05]}  Kxc3 {[%clk 0:00:15]} 54. Nxc6 {[%clk 0:00:05]}  Ra6 {[%clk 0:00:15]} 55. Ne7 {[%clk 0:00:04]}  Rxa5 {[%clk 0:00:14]} 56. Nd5+ {[%clk 0:00:04]}  Kb3 {[%clk 0:00:15]} 57. Ne3 {[%clk 0:00:04]}  c4 {[%clk 0:00:14]} 58. Nd1 {[%clk 0:00:05]}  c3 {[%clk 0:00:14]} 59. Kb1 {[%clk 0:00:05]}  c2+ {[%clk 0:00:14]} 60. Kc1 {[%clk 0:00:05]}  Ra1+ {[%clk 0:00:15]} 61. Kd2 {[%clk 0:00:06]}  cxd1=Q+ {[%clk 0:00:16]} 62. Ke3 {[%clk 0:00:05]}  Ra4 {[%clk 0:00:15]} 0-1


[Site "https://www.chess.com"]

[Event "Titled Tuesday Blitz July 11 Early 2023"]
[White "Bluebaum, Matthias"]
[Black "Zavgorodniy, Sergiy"]
[WhiteFideId "24651516"]
[BlackFideId "14110148"]
[WhiteElo "3054"]
[BlackElo "2595"]
[Result "1-0"]
[Round "2"]
[TimeControl "180+2"]
[Date "2023.07.11"]
[WhiteClock "0:01:14"]
[BlackClock "0:00:06"]
[Board "5"]

1. d4 {[%clk 0:03:00]}  Nf6 {[%clk 0:02:59]} 2. c4 {[%clk 0:03:01]}  e6 {[%clk 0:02:58]} 3. Nc3 {[%clk 0:03:02]}  Bb4 {[%clk 0:02:58]} 4. e3 {[%clk 0:03:02]}  b6 {[%clk 0:02:55]} 5. Bd3 {[%clk 0:03:02]}  Bb7 {[%clk 0:02:53]} 6. Nf3 {[%clk 0:03:03]}  Ne4 {[%clk 0:02:53]} 7. O-O {[%clk 0:03:02]}  Bxc3 {[%clk 0:02:51]} 8. bxc3 {[%clk 0:03:03]}  O-O {[%clk 0:02:51]} 9. Ne1 {[%clk 0:03:01]}  f5 {[%clk 0:02:51]} 10. f3 {[%clk 0:03:00]}  Ng5 {[%clk 0:02:51]} 11. a4 {[%clk 0:02:59]}  Nc6 {[%clk 0:02:39]} 12. c5 {[%clk 0:02:58]}  Qe7 {[%clk 0:02:27]} 13. Ba3 {[%clk 0:02:55]}  d6 {[%clk 0:02:27]} 14. cxd6 {[%clk 0:02:53]}  cxd6 {[%clk 0:02:28]} 15. c4 {[%clk 0:02:44]}  Rac8 {[%clk 0:02:19]} 16. Rc1 {[%clk 0:02:19]}  Kh8 {[%clk 0:02:02]} 17. Qe2 {[%clk 0:02:08]}  e5 {[%clk 0:01:57]} 18. d5 {[%clk 0:02:00]}  Na5 {[%clk 0:01:38]} 19. f4 {[%clk 0:01:59]}  Ne4 {[%clk 0:01:24]} 20. fxe5 {[%clk 0:01:57]}  Qxe5 {[%clk 0:01:23]} 21. Nf3 {[%clk 0:01:58]}  Qe7 {[%clk 0:00:52]} 22. Nd4 {[%clk 0:01:58]}  g6 {[%clk 0:00:29]} 23. Ne6 {[%clk 0:01:58]}  Rf7 {[%clk 0:00:27]} 24. Bxe4 {[%clk 0:01:55]}  fxe4 {[%clk 0:00:27]} 25. Rxf7 {[%clk 0:01:56]}  Qxf7 {[%clk 0:00:27]} 26. Rf1 {[%clk 0:01:57]}  Qe7 {[%clk 0:00:26]} 27. Bb2+ {[%clk 0:01:44]}  Kg8 {[%clk 0:00:25]} 28. Bf6 {[%clk 0:01:45]}  Qd7 {[%clk 0:00:22]} 29. Ba1 {[%clk 0:01:38]}  Nb3 {[%clk 0:00:21]} 30. Qb2 {[%clk 0:01:14]}  Nxa1 {[%clk 0:00:06]} 31. Qf6 {[%clk 0:01:14]} 1-0


[Site "https://www.chess.com"]

[Event "Titled Tuesday Blitz July 11 Early 2023"]
[White "Movahed, Sina"]
[Black "Safin, Robert"]
[WhiteFideId "42520835"]
[BlackFideId "34189120"]
[WhiteElo "3023"]
[BlackElo "2590"]
[Result "1-0"]
[Round "2"]
[TimeControl "180+2"]
[Date "2023.07.11"]
[WhiteClock "0:00:55"]
[BlackClock "0:00:00"]
[Board "7"]

1. e4 {[%clk 0:03:00]}  e6 {[%clk 0:02:59]} 2. d4 {[%clk 0:03:00]}  d5 {[%clk 0:02:59]} 3. e5 {[%clk 0:03:00]}  Bd7 {[%clk 0:02:59]} 4. Nf3 {[%clk 0:02:59]}  a6 {[%clk 0:02:59]} 5. Nc3 {[%clk 0:02:57]}  c5 {[%clk 0:02:57]} 6. Be3 {[%clk 0:02:55]}  Qb6 {[%clk 0:02:48]} 7. Qd2 {[%clk 0:02:45]}  Nh6 {[%clk 0:02:40]} 8. Bd3 {[%clk 0:02:33]}  c4 {[%clk 0:02:00]} 9. Be2 {[%clk 0:02:30]}  Qxb2 {[%clk 0:02:00]} 10. Rb1 {[%clk 0:02:10]}  Qa3 {[%clk 0:02:00]} 11. O-O {[%clk 0:01:53]}  b5 {[%clk 0:01:30]} 12. Nd1 {[%clk 0:01:35]}  Nc6 {[%clk 0:01:16]} 13. Bxh6 {[%clk 0:01:33]}  gxh6 {[%clk 0:01:15]} 14. Ne3 {[%clk 0:01:34]}  O-O-O {[%clk 0:00:50]} 15. c3 {[%clk 0:01:28]}  h5 {[%clk 0:00:19]} 16. Ng5 {[%clk 0:01:24]}  Qe7 {[%clk 0:00:19]} 17. f4 {[%clk 0:01:20]}  h6 {[%clk 0:00:09]} 18. Nf3 {[%clk 0:01:20]}  Bg7 {[%clk 0:00:07]} 19. f5 {[%clk 0:01:19]}  f6 {[%clk 0:00:06]} 20. exf6 {[%clk 0:01:15]}  Bxf6 {[%clk 0:00:06]} 21. Rbe1 {[%clk 0:01:15]}  Rhf8 {[%clk 0:00:04]} 22. a4 {[%clk 0:01:09]}  b4 {[%clk 0:00:03]} 23. Nxc4 {[%clk 0:01:02]}  dxc4 {[%clk 0:00:02]} 24. Bxc4 {[%clk 0:01:02]}  bxc3 {[%clk 0:00:02]} 25. Qxc3 {[%clk 0:00:59]}  e5 {[%clk 0:00:02]} 26. dxe5 {[%clk 0:00:56]}  Qc5+ {[%clk 0:00:02]} 27. Kh1 {[%clk 0:00:56]}  Bg5 {[%clk 0:00:00]} 28. Bxa6+ {[%clk 0:00:55]} 1-0


[Site "https://www.chess.com"]

[Event "Titled Tuesday Blitz July 11 Early 2023"]
[White "Altman, Joshua"]
[Black "He, Anthony"]
[WhiteFideId "426210"]
[BlackFideId "2088215"]
[WhiteElo "2587"]
[BlackElo "2992"]
[Result "0-1"]
[Round "2"]
[TimeControl "180+2"]
[Date "2023.07.11"]
[WhiteClock "0:01:00"]
[BlackClock "0:01:08"]
[Board "10"]

1. d4 {[%clk 0:03:00]}  Nf6 {[%clk 0:02:59]} 2. c4 {[%clk 0:03:01]}  b6 {[%clk 0:02:58]} 3. Nf3 {[%clk 0:03:01]}  Bb7 {[%clk 0:02:58]} 4. g3 {[%clk 0:03:00]}  g6 {[%clk 0:02:55]} 5. Bg2 {[%clk 0:03:00]}  Bg7 {[%clk 0:02:56]} 6. O-O {[%clk 0:03:01]}  O-O {[%clk 0:02:53]} 7. Nc3 {[%clk 0:03:01]}  d5 {[%clk 0:02:53]} 8. Ne5 {[%clk 0:02:57]}  e6 {[%clk 0:02:52]} 9. Qc2 {[%clk 0:02:55]}  a6 {[%clk 0:02:51]} 10. Bf4 {[%clk 0:02:53]}  Nbd7 {[%clk 0:02:50]} 11. Rad1 {[%clk 0:02:45]}  c6 {[%clk 0:02:41]} 12. e4 {[%clk 0:02:44]}  Rc8 {[%clk 0:02:31]} 13. Qe2 {[%clk 0:02:40]}  Re8 {[%clk 0:02:27]} 14. Rfe1 {[%clk 0:02:33]}  Nh5 {[%clk 0:02:17]} 15. exd5 {[%clk 0:02:29]}  Nxf4 {[%clk 0:02:11]} 16. gxf4 {[%clk 0:02:29]}  exd5 {[%clk 0:02:10]} 17. cxd5 {[%clk 0:02:29]}  cxd5 {[%clk 0:02:10]} 18. Nxd5 {[%clk 0:02:20]}  f6 {[%clk 0:02:03]} 19. Nxf6+ {[%clk 0:02:15]}  Nxf6 {[%clk 0:01:50]} 20. Bxb7 {[%clk 0:02:15]}  Rc7 {[%clk 0:01:50]} 21. Bxa6 {[%clk 0:02:11]}  Bh6 {[%clk 0:01:38]} 22. Bc4+ {[%clk 0:02:10]}  Kg7 {[%clk 0:01:38]} 23. Qf3 {[%clk 0:02:05]}  Rce7 {[%clk 0:01:37]} 24. Re3 {[%clk 0:01:56]}  Qc8 {[%clk 0:01:37]} 25. Rde1 {[%clk 0:01:50]}  Nh5 {[%clk 0:01:25]} 26. Nf7 {[%clk 0:01:25]}  Rxe3 {[%clk 0:01:22]} 27. Rxe3 {[%clk 0:01:25]}  Qxc4 {[%clk 0:01:08]} 28. Rxe8 {[%clk 0:01:17]}  Qc1+ {[%clk 0:01:07]} 29. Kg2 {[%clk 0:01:14]}  Nxf4+ {[%clk 0:01:08]} 30. Kg3 {[%clk 0:01:04]}  Qg1+ {[%clk 0:01:07]} 31. Kh4 {[%clk 0:01:03]}  g5+ {[%clk 0:01:07]} 32. Nxg5 {[%clk 0:01:00]}  Qxg5# {[%clk 0:01:08]} 0-1


[Site "https://www.chess.com"]

[Event "Titled Tuesday Blitz July 11 Early 2023"]
[White "Terry, Renato"]
[Black "Lana Rodriguez, David"]
[WhiteFideId "3803457"]
[BlackFideId "2270803"]
[WhiteElo "2987"]
[BlackElo "2586"]
[Result "1-0"]
[Round "2"]
[TimeControl "180+2"]
[Date "2023.07.11"]
[WhiteClock "0:01:07"]
[BlackClock "0:00:26"]
[Board "11"]

1. e4 {[%clk 0:02:54]}  e6 {[%clk 0:02:59]} 2. d4 {[%clk 0:02:54]}  d5 {[%clk 0:02:57]} 3. exd5 {[%clk 0:02:55]}  exd5 {[%clk 0:02:56]} 4. Nf3 {[%clk 0:02:56]}  Nc6 {[%clk 0:02:56]} 5. Bb5 {[%clk 0:02:53]}  Nf6 {[%clk 0:02:50]} 6. O-O {[%clk 0:02:49]}  Be7 {[%clk 0:02:49]} 7. Ne5 {[%clk 0:02:49]}  Bd7 {[%clk 0:02:47]} 8. Nxd7 {[%clk 0:02:48]}  Qxd7 {[%clk 0:02:48]} 9. c3 {[%clk 0:02:48]}  a6 {[%clk 0:02:47]} 10. Bd3 {[%clk 0:02:48]}  O-O {[%clk 0:02:47]} 11. Qf3 {[%clk 0:02:48]}  Qg4 {[%clk 0:02:43]} 12. Qxg4 {[%clk 0:02:43]}  Nxg4 {[%clk 0:02:44]} 13. Bf4 {[%clk 0:02:44]}  Bd6 {[%clk 0:02:35]} 14. Bxd6 {[%clk 0:02:44]}  cxd6 {[%clk 0:02:36]} 15. Nd2 {[%clk 0:02:45]}  Rfe8 {[%clk 0:02:35]} 16. Rfe1 {[%clk 0:02:43]}  Nf6 {[%clk 0:02:34]} 17. f3 {[%clk 0:02:37]}  Rxe1+ {[%clk 0:02:34]} 18. Rxe1 {[%clk 0:02:38]}  Re8 {[%clk 0:02:34]} 19. Rd1 {[%clk 0:02:39]}  h6 {[%clk 0:02:31]} 20. Kf2 {[%clk 0:02:39]}  Kf8 {[%clk 0:02:31]} 21. Nf1 {[%clk 0:02:39]}  Na5 {[%clk 0:02:25]} 22. Ne3 {[%clk 0:02:39]}  g6 {[%clk 0:02:23]} 23. h4 {[%clk 0:02:37]}  h5 {[%clk 0:02:23]} 24. g3 {[%clk 0:02:34]}  Re7 {[%clk 0:02:20]} 25. a4 {[%clk 0:02:28]}  Nc6 {[%clk 0:02:10]} 26. Ng2 {[%clk 0:02:25]}  Nd8 {[%clk 0:02:02]} 27. Nf4 {[%clk 0:02:23]}  Ne6 {[%clk 0:02:01]} 28. Nh3 {[%clk 0:02:24]}  Ke8 {[%clk 0:01:57]} 29. a5 {[%clk 0:02:22]}  Kd7 {[%clk 0:01:57]} 30. Ra1 {[%clk 0:02:22]}  Nd8 {[%clk 0:01:52]} 31. Nf4 {[%clk 0:02:22]}  Ne6 {[%clk 0:01:52]} 32. Ng2 {[%clk 0:02:22]}  Nd8 {[%clk 0:01:51]} 33. Ne3 {[%clk 0:02:23]}  Nc6 {[%clk 0:01:50]} 34. Bc2 {[%clk 0:02:20]}  Re8 {[%clk 0:01:36]} 35. Bb3 {[%clk 0:02:17]}  Ne7 {[%clk 0:01:36]} 36. Ra4 {[%clk 0:02:02]}  Rb8 {[%clk 0:01:32]} 37. Bc2 {[%clk 0:01:57]}  Kc6 {[%clk 0:01:29]} 38. Bd3 {[%clk 0:01:57]}  Kc7 {[%clk 0:01:29]} 39. Ra1 {[%clk 0:01:49]}  Kc6 {[%clk 0:01:29]} 40. Re1 {[%clk 0:01:49]}  Kd7 {[%clk 0:01:29]} 41. Kg2 {[%clk 0:01:41]}  Re8 {[%clk 0:01:28]} 42. Ra1 {[%clk 0:01:40]}  Rc8 {[%clk 0:01:28]} 43. g4 {[%clk 0:01:35]}  hxg4 {[%clk 0:01:16]} 44. fxg4 {[%clk 0:01:36]}  Rh8 {[%clk 0:01:15]} 45. Rh1 {[%clk 0:01:34]}  Nc6 {[%clk 0:01:09]} 46. g5 {[%clk 0:01:11]}  Nh5 {[%clk 0:01:09]} 47. Nxd5 {[%clk 0:01:11]}  Nxa5 {[%clk 0:01:09]} 48. Rf1 {[%clk 0:01:11]}  Rf8 {[%clk 0:01:07]} 49. Bxg6 {[%clk 0:01:09]}  Ke6 {[%clk 0:00:33]} 50. Bxh5 {[%clk 0:01:07]}  Kxd5 {[%clk 0:00:26]} 51. Bxf7+ {[%clk 0:01:07]} 1-0


[Site "https://www.chess.com"]

[Event "Titled Tuesday Blitz July 11 Early 2023"]
[White "Andreev, Konstantin"]
[Black "Chigaev, Maksim"]
[WhiteFideId "24239305"]
[BlackFideId "4108116"]
[WhiteElo "2579"]
[BlackElo "2937"]
[Result "0-1"]
[Round "2"]
[TimeControl "180+2"]
[Date "2023.07.11"]
[WhiteClock "0:00:09"]
[BlackClock "0:00:46"]
[Board "16"]

1. e4 {[%clk 0:03:00]}  c5 {[%clk 0:02:58]} 2. Nf3 {[%clk 0:03:00]}  d6 {[%clk 0:02:58]} 3. d4 {[%clk 0:03:00]}  cxd4 {[%clk 0:02:59]} 4. Nxd4 {[%clk 0:03:01]}  Nf6 {[%clk 0:03:00]} 5. Nc3 {[%clk 0:03:02]}  a6 {[%clk 0:03:00]} 6. h4 {[%clk 0:03:01]}  h6 {[%clk 0:02:59]} 7. Be3 {[%clk 0:02:56]}  e5 {[%clk 0:02:51]} 8. Nb3 {[%clk 0:02:55]}  Be6 {[%clk 0:02:52]} 9. f3 {[%clk 0:02:55]}  h5 {[%clk 0:02:42]} 10. Qd2 {[%clk 0:02:55]}  Nbd7 {[%clk 0:02:42]} 11. O-O-O {[%clk 0:02:54]}  Rc8 {[%clk 0:02:42]} 12. Kb1 {[%clk 0:02:54]}  Be7 {[%clk 0:02:43]} 13. Be2 {[%clk 0:02:53]}  Qc7 {[%clk 0:02:43]} 14. Nd5 {[%clk 0:02:31]}  Nxd5 {[%clk 0:02:27]} 15. exd5 {[%clk 0:02:31]}  Bxd5 {[%clk 0:02:24]} 16. Bd3 {[%clk 0:02:19]}  Be6 {[%clk 0:02:20]} 17. f4 {[%clk 0:02:17]}  f5 {[%clk 0:02:12]} 18. Be2 {[%clk 0:02:07]}  Nf6 {[%clk 0:02:04]} 19. Bf3 {[%clk 0:02:05]}  Ng4 {[%clk 0:01:54]} 20. Bxg4 {[%clk 0:01:47]}  hxg4 {[%clk 0:01:55]} 21. fxe5 {[%clk 0:01:46]}  dxe5 {[%clk 0:01:54]} 22. Bg5 {[%clk 0:01:46]}  O-O {[%clk 0:01:48]} 23. Bxe7 {[%clk 0:01:36]}  Qxe7 {[%clk 0:01:49]} 24. h5 {[%clk 0:01:35]}  Rfd8 {[%clk 0:01:46]} 25. Qe3 {[%clk 0:01:33]}  Qf6 {[%clk 0:01:31]} 26. h6 {[%clk 0:01:30]}  Rxd1+ {[%clk 0:01:28]} 27. Rxd1 {[%clk 0:01:23]}  gxh6 {[%clk 0:01:28]} 28. Qb6 {[%clk 0:01:16]}  Qe7 {[%clk 0:01:16]} 29. Rd6 {[%clk 0:01:12]}  Bf7 {[%clk 0:01:02]} 30. Rxh6 {[%clk 0:01:08]}  Qd8 {[%clk 0:00:54]} 31. Qf2 {[%clk 0:00:49]}  Qd1+ {[%clk 0:00:53]} 32. Nc1 {[%clk 0:00:48]}  Rxc2 {[%clk 0:00:53]} 33. Rh8+ {[%clk 0:00:18]}  Kg7 {[%clk 0:00:46]} 34. Rh7+ {[%clk 0:00:15]}  Kxh7 {[%clk 0:00:46]} 35. Qxf5+ {[%clk 0:00:13]}  Bg6 {[%clk 0:00:47]} 36. Qd7+ {[%clk 0:00:09]}  Qxd7 {[%clk 0:00:46]} 0-1


[Site "https://www.chess.com"]

[Event "Titled Tuesday Blitz July 11 Early 2023"]
[White "Narayanan, Srinath"]
[Black "Streltsov, Alexey"]
[WhiteFideId "5018420"]
[BlackFideId "24104434"]
[WhiteElo "2925"]
[BlackElo "2578"]
[Result "1-0"]
[Round "2"]
[TimeControl "180+2"]
[Date "2023.07.11"]
[WhiteClock "0:01:07"]
[BlackClock "0:00:06"]
[Board "18"]

1. Nf3 {[%clk 0:03:00]}  d5 {[%clk 0:03:00]} 2. c4 {[%clk 0:03:01]}  d4 {[%clk 0:02:59]} 3. e3 {[%clk 0:03:01]}  Nc6 {[%clk 0:02:59]} 4. exd4 {[%clk 0:03:00]}  Nxd4 {[%clk 0:03:00]} 5. Nxd4 {[%clk 0:03:01]}  Qxd4 {[%clk 0:03:00]} 6. Nc3 {[%clk 0:03:01]}  Bf5 {[%clk 0:02:50]} 7. Qf3 {[%clk 0:02:56]}  Qe5+ {[%clk 0:02:37]} 8. Be2 {[%clk 0:02:56]}  O-O-O {[%clk 0:02:33]} 9. O-O {[%clk 0:02:56]}  e6 {[%clk 0:02:24]} 10. d3 {[%clk 0:02:42]}  Bd6 {[%clk 0:02:11]} 11. g3 {[%clk 0:02:43]}  Nf6 {[%clk 0:01:39]} 12. Bf4 {[%clk 0:02:41]}  Qc5 {[%clk 0:01:23]} 13. Bxd6 {[%clk 0:02:30]}  Qxd6 {[%clk 0:01:08]} 14. Qe3 {[%clk 0:02:26]}  Qb6 {[%clk 0:01:08]} 15. c5 {[%clk 0:02:21]}  Qxb2 {[%clk 0:01:02]} 16. Rfc1 {[%clk 0:02:19]}  Nd5 {[%clk 0:00:53]} 17. Nxd5 {[%clk 0:01:47]}  Rxd5 {[%clk 0:00:54]} 18. c6 {[%clk 0:01:46]}  b6 {[%clk 0:00:47]} 19. d4 {[%clk 0:01:39]}  Qxd4 {[%clk 0:00:44]} 20. Qa3 {[%clk 0:01:35]}  Ra5 {[%clk 0:00:23]} 21. Qe7 {[%clk 0:01:33]}  Rd8 {[%clk 0:00:15]} 22. Rd1 {[%clk 0:01:24]}  Rxa2 {[%clk 0:00:11]} 23. Rxa2 {[%clk 0:01:07]}  Qxd1+ {[%clk 0:00:06]} 24. Bxd1 {[%clk 0:01:08]}  Rxd1+ {[%clk 0:00:06]} 25. Kg2 {[%clk 0:01:08]}  Be4+ {[%clk 0:00:07]} 26. f3 {[%clk 0:01:08]}  Bxc6 {[%clk 0:00:06]} 27. Rxa7 {[%clk 0:01:07]} 1-0


[Site "https://www.chess.com"]